bitfinex-derivatives/quotes_SOLF0:USTF0_20250730
["timestamp","ask_amount","ask_price","bid_price","bid_amount"]
[1753876296129,3.12,176.65,176.61,8.5321]
[1753876296432,3.12,176.65,176.58,411.92]
[1753876296433,4.65403829,176.62,176.56,4.71218678]
[1753876296633,7.77403829,176.62,176.57,2.87]
[1753876296828,7.77403829,176.62,176.54,4.65403829]
[1753876296829,3.12,176.62,176.54,4.65403829]
[1753876297027,3.12,176.62,176.55,2.87]
[1753876297232,3.12,176.61,176.59,5.6627]
[1753876297436,3.12,176.62,176.59,5.6627]
[1753876297626,3.12,176.63,176.56,2.87]
[1753876298028,3.12,176.63,176.57,2.87]
[1753876298231,3.12,176.63,176.62,5.662]
[1753876298938,3.12,176.65,176.63,5.6614]
[1753876299125,4.65403829,176.68,176.61,2.87]
[1753876299330,4.65403829,176.68,176.6,4.65403829]
[1753876299331,4.65403829,176.7,176.64,2.87]
[1753876299525,4.65403829,176.7,176.6,4.65403829]
[1753876299526,3.12,176.67,176.6,2.87]
[1753876300530,3.12,176.67,176.64,5.6611]
[1753876300731,4.65403829,176.68,176.64,5.6611]
[1753876300931,3.12,176.65,176.64,5.6611]
[1753876301632,3.12,176.67,176.63,5.6614]
[1753876302231,3.12,176.67,176.64,5.6613]
[1753876302431,3.12,176.67,176.6,2.87]
[1753876302432,3.12,176.68,176.6,4.65403829]
[1753876302638,3.12,176.68,176.61,2.87]
[1753876302937,3.12,176.69,176.61,2.87]
[1753876303242,3.12,176.67,176.65,5.6608]
[1753876303437,3.12,176.67,176.63,2.87]
[1753876303636,3.12,176.67,176.64,2.87]
[1753876303941,4.65403829,176.7,176.64,2.87]
[1753876304142,7.77403829,176.7,176.65,2.87]
[1753876304438,3.12,176.68,176.67,5.6604]
[1753876305142,3.12,176.69,176.65,5.6609]
[1753876305535,3.12,176.69,176.63,7.58218678]
[1753876305734,3.12,176.69,176.63,4.71218678]
[1753876305936,3.12,176.69,176.63,7.58218678]
[1753876306140,5.6602,176.68,176.62,4.71218678]
[1753876306440,3.12,176.67,176.63,4.71218678]
[1753876306940,3.12,176.64,176.62,4.71218678]
[1753876307240,3.12,176.64,176.62,7.58218678]
[1753876307437,3.12,176.64,176.62,2.87]
[1753876307637,3.12,176.64,176.63,5.6616]
[1753876308142,4.65403829,176.68,176.63,5.6616]
[1753876308341,3.12,176.65,176.64,5.6612]
[1753876308637,3.12,176.65,176.62,7.58218678]
[1753876308638,3.12,176.65,176.62,2.87]
[1753876308836,4.65403829,176.68,176.62,5.6618]
[1753876309035,4.65403829,176.68,176.61,4.71218678]
[1753876309236,4.65403829,176.68,176.6,109.54]
[1753876309237,3.12,176.67,176.62,4.71218678]
[1753876309435,3.12,176.66,176.63,2.87]
[1753876309852,3.12,176.69,176.63,2.87]
[1753876310445,5.6599,176.69,176.64,5.6612]
[1753876310641,3.12,176.66,176.62,4.71218678]
[1753876310847,3.12,176.68,176.66,5.6605]
[1753876311047,3.12,176.68,176.66,2.87]
[1753876311350,3.12,176.71,176.69,5.6597]
[1753876311639,3.03,176.72,176.69,2.87]
[1753876311941,3.03,176.72,176.7,8.5293]
[1753876312248,3.03,176.75,176.68,4.71218678]
[1753876312442,3.03,176.74,176.67,7.58218678]
[1753876312748,3.03,176.74,176.68,7.58218678]
[1753876312947,3.03,176.73,176.68,7.58218678]
[1753876313145,3.03,176.72,176.68,7.58218678]
[1753876313342,3.03,176.75,176.68,7.58218678]
[1753876313543,3.03,176.75,176.69,7.58218678]
[1753876314046,3.03,176.69,176.67,4.71218678]
[1753876314241,4.65403829,176.77,176.67,4.71218678]
[1753876314446,3.03,176.71,176.68,5.6599]
[1753876314646,3.03,176.73,176.68,5.6599]
[1753876314945,3.03,176.74,176.69,2.87]
[1753876315154,3.03,176.73,176.68,2.87]
[1753876315649,3.03,176.73,176.68,7.58218678]
[1753876315841,3.03,176.73,176.68,4.71218678]
[1753876316046,3.03,176.73,176.71,8.5289]
[1753876316246,3.03,176.73,176.71,2.87]
[1753876316454,4.65403829,176.78,176.7,7.58218678]
[1753876316651,8.6872,176.77,176.71,2.87]
[1753876316948,3.03,176.77,176.72,4.71218678]
[1753876317151,5.6577,176.76,176.72,10.37088678]
[1753876317340,5.6577,176.76,176.73,4.71218678]
[1753876317541,3.03,176.75,176.72,4.71218678]
[1753876317949,3.03,176.73,176.71,4.71218678]
[1753876318153,4.65403829,176.72,176.7,1.38218678]
[1753876318453,4.65403829,176.71,176.66,6.20022798]
[1753876318653,4.65403829,176.71,176.65,6.20022798]
[1753876318844,3.03,176.69,176.64,6.20022798]
[1753876319153,3.03,176.69,176.63,3.12]
[1753876319453,3.03,176.69,176.64,3.12]
[1753876319842,3.03,176.69,176.65,5.6609]
[1753876320149,3.03,176.69,176.67,3.12]
[1753876320360,3.03,176.73,176.65,3.12]
[1753876321152,5.6586,176.73,176.65,6.20022798]
[1753876321352,3.03,176.72,176.69,3.12]
[1753876321547,3.03,176.71,176.67,5.6601]
[1753876321748,7.68403829,176.74,176.66,3.12]
[1753876322048,3.03,176.74,176.67,3.12]
[1753876322346,5.6585,176.73,176.68,5.6598]
[1753876322544,3.03,176.73,176.67,3.12]
[1753876322744,3.03,176.75,176.68,4.65403829]
[1753876322950,3.03,176.75,176.74,3.12]
[1753876323151,5.6572,176.77,176.74,3.12]
[1753876323352,8.6872,176.77,176.75,3.12]
[1753876323547,3.03,176.77,176.69,3.12]
[1753876323754,3.03,176.77,176.69,6.20022798]
[1753876323949,5.6571,176.78,176.72,5.6585]
[1753876324151,4.65403829,176.79,176.7,4.65403829]
[1753876324357,3.03,176.79,176.71,3.12]
[1753876324755,3.03,176.79,176.73,3.12]
[1753876325055,3.03,176.81,176.74,4.65403829]
[1753876325256,412.18,176.88,176.74,4.65403829]
[1753876325257,3.03,176.84,176.76,4.65403829]
[1753876325451,3.03,176.84,176.77,3.12]
[1753876325650,4.65403829,176.88,176.78,4.65403829]
[1753876325851,3.03,176.86,176.8,3.12]
[1753876326147,3.03,176.86,176.81,3.12]
[1753876326352,3.03,176.89,176.83,3.12]
[1753876326752,3.03,176.93,176.85,3.12]
[1753876326951,4.65403829,176.92,176.85,3.12]
[1753876327153,3.03,176.91,176.85,3.12]
[1753876328455,4.65403829,176.93,176.85,3.12]
[1753876328757,7.68403829,176.93,176.85,3.12]
[1753876329755,3.03,176.93,176.85,3.12]
[1753876329948,3.03,176.93,176.91,3.12]
[1753876330153,3.03,176.95,176.92,3.12]
[1753876330356,3.03,176.94,176.86,4.65403829]
[1753876330552,3.03,176.94,176.82,115.30022798]
[1753876330553,3.03,176.94,176.92,3.12]
[1753876331649,4.65403829,176.97,176.88,3.12]
[1753876331650,3.03,176.96,176.88,3.12]
[1753876331850,412.12,177.03,176.96,3.12]
[1753876332060,5.6481,177.06,176.99,3.12]
[1753876332254,3.03,177.07,176.99,3.12]
[1753876332655,3.03,177.07,177.0,4.65403829]
[1753876332853,3.03,177.07,177.0,7.77403829]
[1753876333258,5.6481,177.06,177.0,7.77403829]
[1753876333458,3.03,177.04,177.01,3.12]
[1753876333759,5.6481,177.06,177.01,3.12]
[1753876333960,4.65403829,177.1,177.01,3.12]
[1753876334256,5.6478,177.07,177.01,3.12]
[1753876334558,3.03,177.1,177.02,4.65403829]
[1753876334760,3.03,177.06,176.98,8.7704]
[1753876334954,3.03,177.04,176.95,117.01403829]
[1753876335461,4.65403829,177.05,176.95,117.01403829]
[1753876335462,5.6491,177.03,176.98,5.6504]
[1753876335859,3.03,177.0,176.98,5.6504]
[1753876336660,3.03,177.04,176.96,3.12]
[1753876336858,3.03,177.04,176.99,3.12]
[1753876337058,3.03,177.1,177.03,3.12]
[1753876337561,3.03,177.1,177.02,4.65403829]
[1753876337562,3.03,177.1,177.04,4.65403829]
[1753876337760,3.03,177.09,177.06,3.12]
[1753876337962,3.03,177.12,177.06,3.12]
[1753876338165,5.6464,177.11,177.04,7.77403829]
[1753876338464,3.03,177.1,177.04,7.77403829]
[1753876338860,3.03,177.1,177.04,3.12]
[1753876340370,3.03,177.08,177.04,3.12]
[1753876340557,8.6772,177.09,177.03,3.12]
[1753876340765,3.03,177.12,177.03,3.12]
[1753876341767,3.03,177.12,177.04,4.65403829]
[1753876341963,3.03,177.12,177.05,3.09]
[1753876342566,4.65403829,177.13,177.05,3.09]
[1753876342867,3.22,177.12,177.05,3.09]
[1753876343360,4.65403829,177.09,177.0,3.09]
[1753876343562,5.6482,177.06,177.0,5.6495]
[1753876343761,3.22,177.05,177.0,5.6495]
[1753876343960,3.22,177.05,176.98,411.7]
[1753876344157,3.22,177.06,176.99,3.09]
[1753876344357,3.22,177.04,176.98,411.7]
[1753876344558,3.22,177.04,176.87,11.3079]
[1753876344559,3.22,177.02,176.96,3.09]
[1753876344966,3.22,177.05,176.98,3.09]
[1753876345161,3.22,177.05,177.0,3.09]
[1753876345863,3.22,177.07,177.0,3.09]
[1753876346366,3.22,177.09,177.01,4.65403829]
[1753876346666,3.22,177.09,177.02,3.09]
[1753876346858,3.22,177.1,177.01,108.98]
[1753876347163,3.22,177.08,177.02,3.09]
[1753876347666,3.22,177.07,177.02,3.09]
[1753876348468,4.65403829,177.09,176.99,113.63403829]
[1753876348666,3.22,177.09,177.02,3.09]
[1753876348864,3.22,177.18,177.03,4.65403829]
[1753876349065,520.9,177.21,177.05,4.65403829]
[1753876349267,3.22,177.2,177.06,3.09]
[1753876349470,5.6464,177.11,177.06,3.09]
[1753876349765,3.22,177.11,177.08,3.09]
[1753876349969,3.22,177.11,177.07,5.6473]
[1753876350171,3.22,177.1,177.05,3.09]
[1753876350371,3.22,177.1,177.04,109.02]
[1753876350566,3.22,177.1,177.07,5.6474]
[1753876350772,3.22,177.13,177.05,7.74403829]
[1753876350972,3.22,177.13,177.06,3.09]
[1753876351169,3.22,177.13,177.11,3.09]
[1753876351369,11.2812,177.3,177.09,4.65403829]
[1753876351568,3.22,177.28,177.12,3.09]
[1753876351770,3.22,177.2,177.14,8.7354]
[1753876352168,3.22,177.2,177.14,3.09]
[1753876352374,3.22,177.19,177.16,3.09]
[1753876352673,3.22,177.19,177.12,4.65403829]
[1753876352878,3.22,177.19,177.16,5.6448]
[1753876353075,3.22,177.19,177.17,3.09]
[1753876353271,4.65403829,177.24,177.18,3.09]
[1753876353666,3.22,177.21,177.18,3.09]
[1753876353869,4.65403829,177.25,177.14,4.65403829]
[1753876354075,3.22,177.23,177.2,3.09]
[1753876354272,3.22,177.24,177.2,3.09]
[1753876354464,3.22,177.25,177.17,3.09]
[1753876354775,3.22,177.25,177.19,3.09]
[1753876355171,4.65403829,177.24,177.14,4.65403829]
[1753876355366,3.22,177.24,177.17,3.09]
[1753876355873,3.22,177.25,177.17,3.09]
[1753876356572,3.22,177.25,177.18,4.65403829]
[1753876356773,3.22,177.25,177.19,3.09]
[1753876357172,3.22,177.26,177.2,8.7332]
[1753876357674,5.6417,177.26,177.2,8.7332]
[1753876357973,3.22,177.24,177.17,3.09]
[1753876358370,3.22,177.24,177.18,5.6441]
[1753876358569,3.22,177.24,177.14,113.55403829]
[1753876358770,4.65403829,177.23,177.15,3.09]
[1753876358978,3.22,177.22,177.15,3.09]
[1753876359475,3.22,177.19,177.16,3.09]
[1753876359667,4.65403829,177.21,177.12,411.26]
[1753876359871,3.22,177.2,177.12,411.26]
[1753876360071,3.22,177.18,177.12,411.26]
[1753876360271,3.22,177.18,177.12,414.35]
[1753876360472,3.22,177.18,177.12,411.26]
[1753876360667,3.22,177.17,177.14,3.09]
[1753876360879,3.22,177.16,177.12,411.26]
[1753876361073,3.22,177.16,177.11,5.6463]
[1753876361273,3.22,177.16,177.1,3.09]
[1753876361467,3.22,177.16,177.09,3.09]
[1753876361677,4.65403829,177.13,177.09,5.6468]
[1753876361870,3.22,177.12,177.06,111.87]
[1753876362070,3.22,177.12,177.07,3.09]
[1753876362384,3.22,177.11,177.08,3.09]
[1753876362974,3.22,177.14,177.1,3.09]
[1753876363178,7.87403829,177.16,177.08,3.09]
[1753876363375,3.22,177.15,177.08,3.09]
[1753876363575,3.22,177.14,177.08,3.09]
[1753876364074,3.22,177.13,177.06,3.09]
[1753876364282,3.22,177.11,177.06,3.09]
[1753876364475,3.22,177.11,177.06,5.6479]
[1753876364476,8.8665,177.11,177.06,5.6479]
[1753876364780,3.22,177.09,177.06,5.6479]
[1753876364980,3.22,177.08,177.06,8.7379]
[1753876365677,3.22,177.09,177.03,3.09]
[1753876365881,3.22,177.09,177.02,522.89]
[1753876366683,3.22,177.07,177.02,414.17]
[1753876366885,4.65403829,177.08,177.02,411.08]
[1753876367086,4.65403829,177.08,177.03,8.7389]
[1753876367087,3.22,177.06,177.03,8.7389]
[1753876367286,10.30163829,177.08,177.03,3.09]
[1753876367287,3.22,177.05,177.03,3.09]
[1753876367584,3.22,177.07,177.05,3.09]
[1753876368086,4.65403829,177.07,177.02,414.17]
[1753876368277,3.22,177.05,177.02,3.09]
[1753876368477,3.22,177.04,177.02,5.649]
[1753876368782,3.22,177.06,177.03,3.09]
[1753876368991,3.22,177.06,177.04,3.09]
[1753876369184,4.58871056,177.18,177.02,3.09]
[1753876369185,3.22,177.09,177.02,3.09]
[1753876369486,5.646,177.13,177.07,5.6474]
[1753876369786,8.866,177.13,177.1,3.09]
[1753876369986,5.646,177.13,177.07,5.6474]
[1753876370282,3.22,177.1,177.08,3.09]
[1753876370979,3.22,177.11,177.05,3.09]
[1753876371580,3.2,177.1,177.07,3.2]
[1753876371780,3.2,177.13,177.05,3.2]
[1753876371979,3.2,177.13,177.08,5.6473]
[1753876372284,4.65403829,177.14,177.09,3.2]
[1753876372482,3.2,177.12,177.06,4.65403829]
[1753876372689,3.2,177.14,177.07,3.2]
[1753876373185,3.2,177.14,177.09,5.647]
[1753876373385,3.2,177.15,177.09,8.847]
[1753876373585,3.2,177.15,177.09,3.2]
[1753876373787,3.2,177.15,177.12,3.2]
[1753876374088,3.2,177.15,177.13,3.2]
[1753876374283,5.6441,177.19,177.15,3.2]
[1753876374489,7.26281664,177.18,177.1,3.2]
[1753876374682,3.2,177.18,177.1,3.2]
[1753876374881,3.2,177.17,177.14,3.2]
[1753876375184,3.2,177.16,177.14,3.2]
[1753876375380,3.2,177.16,177.1,3.2]
[1753876375689,3.2,177.19,177.12,3.2]
[1753876376488,4.58871056,177.23,177.11,4.65403829]
[1753876376687,7.26867885,177.22,177.14,3.2]
[1753876376984,4.58871056,177.24,177.04,379.54]
[1753876376985,3.2,177.19,177.12,111.62]
[1753876377187,3.2,177.19,177.13,3.2]
[1753876377578,3.2,177.19,177.14,5.6451]
[1753876377785,5.6438,177.2,177.15,3.2]
[1753876378090,3.2,177.17,177.15,3.2]
[1753876378282,3.2,177.2,177.16,3.2]
[1753876378487,3.2,177.2,177.13,3.2]
[1753876379086,3.2,177.19,177.16,3.2]
[1753876379287,5.643,177.22,177.12,108.4]
[1753876379496,3.2,177.2,177.14,3.2]
[1753876379985,3.2,177.2,177.17,5.6444]
[1753876380187,3.2,177.22,177.14,3.2]
[1753876380383,3.2,177.22,177.15,8.8449]
[1753876380580,4.65403829,177.21,177.15,3.2]
[1753876380785,3.2,177.18,177.13,3.2]
[1753876381591,3.2,177.18,177.11,8.8462]
[1753876381788,3.2,177.18,177.11,3.2]
[1753876381988,3.2,177.17,177.11,3.2]
[1753876382286,3.2,177.17,177.15,3.2]
[1753876382488,3.2,177.15,177.1,3.2]
[1753876382691,3.2,177.16,177.08,108.26]
[1753876382898,3.2,177.17,177.06,108.36]
[1753876383186,3.2,177.15,177.08,3.2]
[1753876383390,3.2,177.15,177.09,5.6467]
[1753876383594,3.2,177.15,177.08,3.2]
[1753876383790,3.2,177.15,177.11,5.6462]
[1753876383993,3.2,177.16,177.12,3.2]
[1753876384184,3.2,177.16,177.09,4.65403829]
[1753876384388,3.2,177.15,177.13,3.2]
[1753876384593,4.65403829,177.16,177.11,3.2]
[1753876384895,3.2,177.15,177.09,3.2]
[1753876385593,5.6457,177.13,177.09,3.2]
[1753876385794,3.2,177.15,177.08,3.2]
[1753876386195,4.65403829,177.16,177.09,5.6469]
[1753876386196,3.2,177.13,177.09,5.6469]
[1753876386386,4.65403829,177.14,177.08,3.2]
[1753876386592,5.6466,177.11,177.06,5.6477]
[1753876386794,3.2,177.09,177.06,8.8477]
[1753876386992,3.2,177.08,177.06,3.2]
[1753876387195,3.2,177.08,177.06,8.8478]
[1753876387500,3.2,177.08,177.06,3.2]
[1753876387796,3.2,177.11,177.05,3.2]
[1753876388495,3.2,177.1,177.07,3.2]
[1753876388695,3.2,177.09,177.07,3.2]
[1753876388890,3.2,177.09,177.07,8.8476]
[1753876389289,3.2,177.09,177.08,3.2]
[1753876389495,3.2,177.09,177.05,5.6481]
[1753876389695,3.2,177.09,177.07,3.2]
[1753876389889,3.2,177.11,177.04,382.74]
[1753876390090,3.2,177.09,177.04,491.02]
[1753876390297,3.2,177.07,176.97,12.50034197]
[1753876390495,5.6481,177.06,177.01,5.6494]
[1753876390693,4.65403829,177.07,177.01,3.2]
[1753876390897,3.2,177.08,177.02,3.2]
[1753876391099,8.8475,177.08,177.03,5.6487]
[1753876391393,3.2,177.07,177.05,3.2]
[1753876392102,3.2,177.06,177.04,3.2]
[1753876392296,3.2,177.06,177.04,8.8485]
[1753876392500,4.65403829,177.1,177.05,3.2]
[1753876392698,3.2,177.07,177.05,3.2]
[1753876392893,3.2,177.07,177.05,8.8482]
[1753876393106,3.2,177.07,177.06,3.2]
[1753876393604,3.2,177.07,177.01,4.65403829]
[1753876393904,3.2,177.07,177.05,3.2]
[1753876394303,3.2,177.1,177.02,3.2]
[1753876394504,3.2,177.1,177.05,4.65403829]
[1753876394704,3.2,177.1,177.06,5.6478]
[1753876394904,3.2,177.07,177.01,4.65403829]
[1753876395105,3.2,177.07,177.04,111.34]
[1753876395301,3.2,177.07,177.05,3.2]
[1753876396101,3.2,177.07,177.06,3.2]
[1753876396498,4.65403829,177.08,177.01,108.14]
[1753876396704,3.2,177.05,177.01,111.34]
[1753876396900,21.51871056,177.2,177.01,108.14]
[1753876396901,4.65403829,177.04,177.01,108.14]
[1753876397105,4.65403829,177.02,176.96,111.32]
[1753876397305,3.2,177.01,176.95,108.12]
[1753876397707,3.2,177.01,176.97,5.6507]
[1753876397901,3.2,177.04,176.96,3.2]
[1753876398104,3.2,177.02,176.96,3.2]
[1753876398306,8.8494,177.02,176.97,5.6507]
[1753876398507,3.2,177.02,176.95,108.12]
[1753876398706,3.2,177.02,176.96,3.2]
[1753876398906,10.30253829,177.05,177.0,5.6496]
[1753876399307,3.2,177.03,177.01,3.2]
[1753876399512,3.2,177.02,177.01,3.2]
[1753876399710,4.65403829,177.07,176.97,4.65403829]
[1753876399910,3.2,177.06,176.98,3.2]
[1753876400305,3.2,177.06,177.02,5.649]
[1753876400605,3.2,177.04,177.03,3.2]
[1753876400804,3.2,177.06,177.04,3.2]
[1753876401509,3.3,177.08,177.02,3.15]
[1753876402605,3.3,177.1,177.08,3.15]
[1753876402810,3.3,177.09,177.08,3.15]
[1753876403406,3.3,177.09,177.03,4.65403829]
[1753876403615,3.3,177.09,177.06,3.15]
[1753876403904,3.3,177.09,177.07,3.15]
[1753876404109,7.95403829,177.12,177.04,3.15]
[1753876404715,3.3,177.11,177.09,3.15]
[1753876404908,3.3,177.13,177.1,3.15]
[1753876405110,3.3,177.12,177.1,3.15]
[1753876406013,3.3,177.15,177.06,3.15]
[1753876406609,3.3,177.17,177.13,3.15]
[1753876407012,3.3,177.17,177.08,107.92]
[1753876407220,3.3,177.17,177.09,3.15]
[1753876407419,3.3,177.17,177.1,3.15]
[1753876407614,3.3,177.17,177.14,8.7951]
[1753876407921,3.3,177.16,177.14,8.7951]
[1753876408322,3.3,177.17,177.15,3.15]
[1753876409214,3.3,177.25,177.11,4.65403829]
[1753876409416,3.3,177.2,177.12,3.15]
[1753876409915,3.3,177.2,176.9,12.40045596]
[1753876409916,9.30807658,177.13,176.9,12.40045596]
[1753876410116,4.65403829,176.97,176.89,3.15]
[1753876410321,4.65403829,176.96,176.92,3.15]
[1753876410625,4.65403829,177.1,176.93,3.15]
[1753876410816,4.65403829,177.1,176.94,3.15]
[1753876410817,4.65403829,177.02,176.94,3.15]
[1753876411117,10.90414999,177.01,176.94,3.15]
[1753876411324,5.6496,177.01,176.94,3.15]
[1753876411519,4.65403829,177.05,176.94,3.15]
[1753876411716,10.90335945,177.04,176.94,3.15]
[1753876412020,4.65403829,177.08,176.97,3.15]
[1753876412216,10.89189613,177.07,176.97,3.15]
[1753876412420,10.75381924,177.06,176.97,3.15]
[1753876412624,4.65403829,177.08,176.97,3.15]
[1753876412819,5.10567983,177.07,176.97,3.15]
[1753876413024,4.65403829,177.08,176.97,3.15]
[1753876413323,5.6482,177.06,176.98,3.15]
[1753876413718,5.6476,177.07,176.98,3.15]
[1753876413918,4.65403829,177.08,177.0,3.15]
[1753876414121,4.65403829,177.1,177.0,3.15]
[1753876414322,5.6476,177.08,177.0,3.15]
[1753876414719,4.65403829,177.1,177.0,3.15]
[1753876414919,5.6475,177.08,177.0,3.15]
[1753876415223,4.65403829,177.1,177.0,3.15]
[1753876415820,4.65403829,177.1,177.01,3.15]
[1753876416427,5.6479,177.07,177.01,3.15]
[1753876416726,5.6479,177.07,177.03,3.15]
[1753876417022,4.65403829,177.1,177.05,3.15]
[1753876417214,5.89187571,177.09,177.06,8.60999601]
[1753876417417,4.65403829,177.1,177.07,5.45999601]
[1753876417618,5.647,177.09,177.08,5.45999601]
[1753876417920,4.65403829,177.1,177.08,5.46007457]
[1753876418122,4.65403829,177.1,177.09,5.46007457]
[1753876418123,10.30063829,177.1,177.09,5.46007457]
[1753876419624,5.6466,177.1,177.09,5.46007457]
[1753876420023,5.6476,177.07,177.06,3.15]
[1753876420519,4.65403829,177.08,177.0,3.15]
[1753876420716,4.65403829,177.06,177.0,8.7997]
[1753876420920,4.65403829,177.06,176.97,109.7]
[1753876421120,0.4166623,177.06,176.99,3.15]
[1753876421422,0.4166623,177.06,177.01,3.15]
[1753876421721,0.4166623,177.06,177.02,5.6283669]
[1753876421722,6.0645623,177.06,177.02,5.6283669]
[1753876421929,6.0645623,177.06,177.04,3.15]
[1753876422527,6.0645623,177.06,177.01,5.6493]
[1753876422720,6.0645623,177.06,177.05,3.15]
[1753876423127,0.4166623,177.06,176.99,3.15]
[1753876423429,4.65403829,177.0,176.95,3.15]
[1753876423624,4.65403829,176.96,176.86,4.65403829]
[1753876423928,4.65403829,176.94,176.86,3.15]
[1753876424122,10.30593829,176.94,176.88,3.15]
[1753876424323,4.65403829,176.94,176.88,3.15]
[1753876425830,4.65403829,176.92,176.88,3.15]
[1753876426022,10.30663829,176.92,176.88,3.15]
[1753876426228,4.65403829,176.94,176.85,3.15]
[1753876426726,4.65403829,176.94,176.88,3.15]
[1753876427227,4.65403829,176.96,176.86,4.65403829]
[1753876427430,4.65403829,176.96,176.87,3.15]
[1753876428126,5.8365831,176.95,176.87,3.15]
[1753876428328,4.65403829,176.96,176.87,3.15]
[1753876428524,5.8365831,176.95,176.87,3.15]
[1753876428724,4.65403829,176.96,176.87,3.15]
[1753876429028,5.83575341,176.95,176.9,5.6528]
[1753876429332,10.30523829,176.96,176.87,3.15]
[1753876429333,4.65403829,176.96,176.93,3.15]
[1753876429525,5.83506926,176.95,176.93,3.15]
[1753876429721,4.65403829,176.96,176.93,3.15]
[1753876430029,5.83497696,176.95,176.88,4.65403829]
[1753876430231,4.65403829,177.0,176.91,3.15]
[1753876430426,5.83404742,176.99,176.91,3.15]
[1753876430626,5.83404742,176.98,176.91,3.15]
[1753876430928,5.83404742,176.97,176.91,3.15]
[1753876431131,5.83404742,176.96,176.95,5.6514]
[1753876431429,5.83404742,176.96,176.95,8.8014]
[1753876431623,4.65403829,177.0,176.95,5.6514]
[1753876431825,5.83494423,176.99,176.97,3.14]
[1753876432028,5.83494423,176.98,176.97,3.14]
[1753876432229,5.83494423,176.98,176.95,5.6514]
[1753876432427,4.65403829,177.0,176.96,3.14]
[1753876432629,5.83460016,176.99,176.96,3.14]
[1753876432827,5.83460016,176.98,176.91,3.14]
[1753876433028,187.18355442,177.63,176.93,3.14]
[1753876433029,4.65403829,177.02,176.93,3.14]
[1753876433228,5.83471086,177.01,176.93,3.14]
[1753876433429,5.83471086,177.0,176.92,4.65403829]
[1753876433622,4.65403829,177.02,176.99,3.14]
[1753876433823,5.83468535,177.01,176.99,3.14]
[1753876434021,5.83468535,177.0,176.99,3.14]
[1753876435428,5.83468535,177.0,176.92,4.65403829]
[1753876435628,5.835589,176.99,176.97,3.14]
[1753876435835,4.65403829,177.0,176.97,3.14]
[1753876436033,5.83553654,176.99,176.97,3.14]
[1753876436229,4.65403829,177.0,176.97,3.14]
[1753876436832,4.65403829,177.0,176.92,3.14]
[1753876437634,5.83493766,176.99,176.92,3.14]
[1753876437833,4.65403829,177.0,176.92,3.14]
[1753876438035,5.83507429,176.99,176.92,3.14]
[1753876438229,4.65403829,177.0,176.92,3.14]
[1753876438424,4.65403829,177.0,176.96,5.651]
[1753876438630,4.65403829,177.0,176.98,3.14]